{"text_format":"1","workbook":"xlsx","n_sheets":3,"sheets":["Graphique1","Base TW2016","Feuil3"],"not_rendered":{"charts":2,"images":0,"macros":1,"external_links":0,"defined_names":2,"comments":0,"pivot_tables":0},"unopened":[{"sheet":"Graphique1","index":0,"reason":"not_a_worksheet"}],"bounds":{"document_bytes":16777216,"sheet_cells":100000,"rows_first":2000,"rows_last":500,"rows_between":2000,"halvings":0,"cell_chars":16384,"cell_head_chars":4096},"cells_cut":0,"cells_raw":0,"read":"whole","date_system":"1900"}

{"sheet":"Base TW2016","index":1,"n_rows":33,"n_cols":31,"rows_kept":33,"cut":false,"hidden":false,"merged":[]}
[{"$f":"SUMPRODUCT((ROW(J3:V17)<>\"\")*1)","v":15},"Code c","Client","BDC","Inter Technique","Relais "," MOTO"," ana"," AB","1","2",3,"4","5","6","7","8","9","10","11","12","13",null,"2016-04-10","2016-04-11","2016-04-12","2016-04-13","2016-04-14","2016-04-15","2016-04-16","codage"]
["EN COURS"]
["CGP",null,null,null,null,null,null,null,null,7,null,null,null,null,null,null,null,null,null,null,null,null,null,null,7,7,7,7,7,7,{"$f":"IFERROR(MATCH(9999,J3:V3),\"\")","v":1}]
[" LE VIR",null,null,null,null,null,null,null,{"$f":"MATCH(999,J4:V4)","v":3},null,null,28,null,null,null,null,null,null,null,null,null,null,null,null,28,28,28,28,28,28,{"$f":"IFERROR(MATCH(9999,J4:V4),\"\")","v":3}]
["SECU",null,null,null,null,null,null,null,null,null,null,null,null,null,null,6,null,null,null,null,null,null,null,null,6,6,6,6,6,6,7]
["ORA",null,null,null,null,null,null,null,null,null,2,null,null,null,null,null,null,null,null,null,null,null,null,null,null,null,null,null,null,null,2]
["CHEYENNE",null,null,null,null,null,null,null,{"$f":"MATCH(999,J7:V7)","v":6},2,18,null,null,null,4,null,null,null,null,null,null,null,null,18,18,18,18,18,18,18,6]
["V-DE VES",null,null,null,null,null,null,null,null,null,null,null,null,null,null,null,null,null,null,null,27,null,null,null,27,27,27,27,27,27,12]
[" PROD",null,null,null,null,null,null,null,null,null,18,null,null,null,null,null,null,null,null,null,null,null,null,null,18,18,18,18,18,18,2]
["SABLE",null,null,null,null,null,null,null,null,null,null,null,null,null,null,null,25,null,null,null,null,null,null,null,null,null,null,null,null,null,8]
["CAR ",null,null,null,null,null,null,null,null,null,14,null,null,null,null,null,null,null,null,null,null,null,null,14,14,14,14,14,14,14,2]
[null,null,null,null,null,null,null,null,null,null,null,null,null,null,null,null,null,null,null,null,null,null,null,null,null,null,null,null,null,null,""]
[null,null,null,null,null,null,null,null,null,null,null,null,null,null,null,null,null,null,null,null,null,null,null,null,null,null,null,null,null,null,""]
[null,null,null,null,null,null,null,null,null,null,null,null,null,null,null,null,null,null,null,null,null,null,null,null,null,null,null,null,null,null,""]
[null,null,null,null,null,null,null,null,null,null,null,null,null,null,null,null,null,null,null,null,null,null,null,null,null,null,null,null,null,null,""]
[null,null,null,null,null,null,null,null,null,null,null,null,null,null,null,null,null,null,null,null,null,null,null,null,null,null,null,null,null,null,""]
[null,null,null,null,null,null,null,null,null,null,null,null,null,null,null,null,null,null,null,null,null,null,null,null,null,null,null,null,null,null,""]
["TOTAL TOUS MODELES",null,null,null,null,null,null,null,null,null,null,null,null,null,null,null,null,null,null,null,null,null,null,{"$f":"SUM(X2:X17)","v":32},118,118,118,118,118,118]
[]
[null,null,null,null,null,null,null,null,null,{"$f":"COUNTIF($AE$3:$AE$17,COLUMN(A1))","v":1},{"$f":"COUNTIF($AE$3:$AE$17,COLUMN(B1))","v":3},1,0,0,1,1,1,0,0,0,1,0]
["1",null,null,null,null,null,null,null,null,{"$f":"SUMIF($AE$3:$AE$17,COLUMN(A1),J3:J17)","v":7},{"$f":"SUMIF($AE$3:$AE$17,COLUMN(B1),K3:K17)","v":34},28,0,0,4,6,25,0,0,0,27,0]
["2"]
[3]
["4"]
["5"]
["6"]
["7"]
["8"]
["9"]
["10"]
["11"]
["12"]
["13"]

{"sheet":"Feuil3","index":2,"n_rows":0,"n_cols":0,"rows_kept":0,"cut":false,"hidden":false,"merged":[]}